[Event "Titled Tuesday Blitz April 19 Early 2022"]
[White "Fromm, Marius"]
[Black "Molina, Roberto Junio Brito"]
[WhiteFideId "12993190"]
[BlackFideId "2109450"]
[WhiteElo "2576"]
[BlackElo "2432"]
[Result "0-1"]
[Round "11"]
[TimeControl "180+1"]
[Date "2022.04.19"]
[WhiteClock "0:00:03"]
[BlackClock "0:00:19"]

1. e4 {[%clk 0:03:00]}  c6 {[%clk 0:02:57]} 2. d4 {[%clk 0:03:00]}  d5 {[%clk 0:02:56]} 3. exd5 {[%clk 0:03:01]}  cxd5 {[%clk 0:02:56]} 4. Bd3 {[%clk 0:03:02]}  Nc6 {[%clk 0:02:56]} 5. c3 {[%clk 0:03:03]}  g6 {[%clk 0:02:54]} 6. Nf3 {[%clk 0:02:56]}  Bf5 {[%clk 0:02:52]} 7. Be2 {[%clk 0:02:57]}  Bg7 {[%clk 0:02:48]} 8. h3 {[%clk 0:02:53]}  Nf6 {[%clk 0:02:47]} 9. O-O {[%clk 0:02:52]}  O-O {[%clk 0:02:46]} 10. Bf4 {[%clk 0:02:52]}  Rc8 {[%clk 0:02:45]} 11. Nbd2 {[%clk 0:02:53]}  Ne4 {[%clk 0:02:44]} 12. Re1 {[%clk 0:02:52]}  Qd7 {[%clk 0:02:36]} 13. Bf1 {[%clk 0:02:49]}  Nxd2 {[%clk 0:02:34]} 14. Qxd2 {[%clk 0:02:48]}  f6 {[%clk 0:02:31]} 15. Rad1 {[%clk 0:02:28]}  Rfe8 {[%clk 0:02:26]} 16. Bh6 {[%clk 0:02:25]}  Be6 {[%clk 0:02:14]} 17. Bxg7 {[%clk 0:02:16]}  Kxg7 {[%clk 0:02:15]} 18. c4 {[%clk 0:01:49]}  Bf7 {[%clk 0:02:07]} 19. c5 {[%clk 0:01:50]}  a6 {[%clk 0:01:59]} 20. b4 {[%clk 0:01:48]}  Rcd8 {[%clk 0:01:51]} 21. a4 {[%clk 0:01:46]}  e5 {[%clk 0:01:39]} 22. b5 {[%clk 0:01:42]}  axb5 {[%clk 0:01:40]} 23. axb5 {[%clk 0:01:42]}  Nxd4 {[%clk 0:01:36]} 24. Nxd4 {[%clk 0:01:42]}  exd4 {[%clk 0:01:37]} 25. Qxd4 {[%clk 0:01:40]}  Rxe1 {[%clk 0:01:30]} 26. Rxe1 {[%clk 0:01:41]}  Rc8 {[%clk 0:01:23]} 27. Re3 {[%clk 0:01:36]}  Qc7 {[%clk 0:01:22]} 28. Rc3 {[%clk 0:00:56]}  Qe5 {[%clk 0:01:20]} 29. Qxe5 {[%clk 0:00:44]}  fxe5 {[%clk 0:01:21]} 30. c6 {[%clk 0:00:45]}  b6 {[%clk 0:01:11]} 31. Ra3 {[%clk 0:00:40]}  d4 {[%clk 0:01:04]} 32. Ra6 {[%clk 0:00:29]}  e4 {[%clk 0:01:00]} 33. Rxb6 {[%clk 0:00:25]}  d3 {[%clk 0:01:00]} 34. Rb7 {[%clk 0:00:21]}  Kf6 {[%clk 0:01:00]} 35. Rd7 {[%clk 0:00:20]}  Bc4 {[%clk 0:00:55]} 36. Rd4 {[%clk 0:00:02]}  Bxb5 {[%clk 0:00:52]} 37. Rxe4 {[%clk 0:00:02]}  Rxc6 {[%clk 0:00:51]} 38. Rd4 {[%clk 0:00:02]}  Rc1 {[%clk 0:00:47]} 39. g4 {[%clk 0:00:02]}  d2 {[%clk 0:00:41]} 40. Rxd2 {[%clk 0:00:03]}  Bxf1 {[%clk 0:00:40]} 41. Kh2 {[%clk 0:00:03]}  Bc4 {[%clk 0:00:38]} 42. Kg3 {[%clk 0:00:04]}  Rc3+ {[%clk 0:00:36]} 43. f3 {[%clk 0:00:03]}  g5 {[%clk 0:00:34]} 44. Rd6+ {[%clk 0:00:03]}  Be6 {[%clk 0:00:33]} 45. Rd2 {[%clk 0:00:02]}  h6 {[%clk 0:00:32]} 46. Re2 {[%clk 0:00:02]}  Bd5 {[%clk 0:00:32]} 47. Rf2 {[%clk 0:00:03]}  Ke5 {[%clk 0:00:31]} 48. Rf1 {[%clk 0:00:02]}  Rd3 {[%clk 0:00:23]} 49. Re1+ {[%clk 0:00:01]}  Kd4 {[%clk 0:00:23]} 50. Rf1 {[%clk 0:00:02]}  Ke3 {[%clk 0:00:23]} 51. Re1+ {[%clk 0:00:02]}  Kd2 {[%clk 0:00:23]} 52. Rf1 {[%clk 0:00:03]}  Ke2 {[%clk 0:00:23]} 53. Rf2+ {[%clk 0:00:04]}  Ke1 {[%clk 0:00:23]} 54. Kg2 {[%clk 0:00:01]}  Rxf3 {[%clk 0:00:20]} 55. Rxf3 {[%clk 0:00:02]}  Ke2 {[%clk 0:00:20]} 56. Kg3 {[%clk 0:00:02]}  Bxf3 {[%clk 0:00:20]} 57. h4 {[%clk 0:00:03]}  Ke3 {[%clk 0:00:19]} 0-1


[Site "https://www.chess.com"]

[Event "Titled Tuesday Blitz April 19 Early 2022"]
[White "Gabrielian, Artur"]
[Black "Papp, Levente"]
[WhiteFideId "4131002"]
[BlackFideId "751243"]
[WhiteElo "2440"]
[BlackElo "2308"]
[Result "1-0"]
[Round "11"]
[TimeControl "180+1"]
[Date "2022.04.19"]
[WhiteClock "0:00:09"]
[BlackClock "0:00:01"]

1. c4 {[%clk 0:03:00]}  c6 {[%clk 0:02:57]} 2. d4 {[%clk 0:02:58]}  d5 {[%clk 0:02:57]} 3. Nf3 {[%clk 0:02:58]}  e6 {[%clk 0:02:55]} 4. Nc3 {[%clk 0:02:51]}  Nf6 {[%clk 0:02:55]} 5. Bg5 {[%clk 0:02:50]}  Bb4 {[%clk 0:02:52]} 6. e3 {[%clk 0:02:48]}  O-O {[%clk 0:02:51]} 7. Qc2 {[%clk 0:02:46]}  h6 {[%clk 0:02:49]} 8. Bh4 {[%clk 0:02:45]}  g5 {[%clk 0:02:49]} 9. Bg3 {[%clk 0:02:45]}  Ne4 {[%clk 0:02:50]} 10. Bd3 {[%clk 0:02:45]}  f5 {[%clk 0:02:47]} 11. Be5 {[%clk 0:02:12]}  Nd7 {[%clk 0:02:42]} 12. h3 {[%clk 0:01:43]}  b5 {[%clk 0:02:17]} 13. cxd5 {[%clk 0:01:29]}  cxd5 {[%clk 0:02:05]} 14. Qb3 {[%clk 0:01:16]}  Qa5 {[%clk 0:01:30]} 15. O-O {[%clk 0:01:15]}  Bxc3 {[%clk 0:01:16]} 16. bxc3 {[%clk 0:01:13]}  Qxc3 {[%clk 0:00:54]} 17. Bxb5 {[%clk 0:01:00]}  g4 {[%clk 0:00:43]} 18. hxg4 {[%clk 0:00:50]}  fxg4 {[%clk 0:00:44]} 19. Bxd7 {[%clk 0:00:37]}  Bxd7 {[%clk 0:00:32]} 20. Nh4 {[%clk 0:00:36]}  Qxb3 {[%clk 0:00:31]} 21. axb3 {[%clk 0:00:36]}  Bb5 {[%clk 0:00:32]} 22. Rfc1 {[%clk 0:00:33]}  Rxf2 {[%clk 0:00:32]} 23. Ng6 {[%clk 0:00:27]}  Rf7 {[%clk 0:00:22]} 24. Nf4 {[%clk 0:00:27]}  Re7 {[%clk 0:00:22]} 25. Rc2 {[%clk 0:00:19]}  a5 {[%clk 0:00:17]} 26. Rac1 {[%clk 0:00:18]}  Ba6 {[%clk 0:00:08]} 27. Rc7 {[%clk 0:00:18]}  Rae8 {[%clk 0:00:08]} 28. R1c6 {[%clk 0:00:17]}  Bb5 {[%clk 0:00:07]} 29. Rxe7 {[%clk 0:00:17]}  Rxe7 {[%clk 0:00:06]} 30. Rc8+ {[%clk 0:00:17]}  Kf7 {[%clk 0:00:06]} 31. Rh8 {[%clk 0:00:16]}  a4 {[%clk 0:00:04]} 32. bxa4 {[%clk 0:00:14]}  Bxa4 {[%clk 0:00:05]} 33. Rxh6 {[%clk 0:00:14]}  Ke8 {[%clk 0:00:03]} 34. Nxe6 {[%clk 0:00:13]}  Rf7 {[%clk 0:00:03]} 35. Nf4 {[%clk 0:00:10]}  Kd7 {[%clk 0:00:02]} 36. Nxd5 {[%clk 0:00:10]}  Bc6 {[%clk 0:00:01]} 37. Nf4 {[%clk 0:00:10]}  Nc3 {[%clk 0:00:01]} 38. Rd6+ {[%clk 0:00:09]} 1-0


[Site "https://www.chess.com"]

[Event "Titled Tuesday Blitz April 19 Early 2022"]
[White "Gatterer, Florian"]
[Black "Ocelak, Jakub"]
[WhiteFideId "811688"]
[BlackFideId "23707933"]
[WhiteElo "2218"]
[BlackElo "2048"]
[Result "0-1"]
[Round "11"]
[TimeControl "180+1"]
[Date "2022.04.19"]
[WhiteClock "0:00:01"]
[BlackClock "0:00:07"]

1. f4 {[%clk 0:03:00]}  e5 {[%clk 0:02:58]} 2. fxe5 {[%clk 0:03:01]}  d6 {[%clk 0:02:58]} 3. exd6 {[%clk 0:03:01]}  Bxd6 {[%clk 0:02:59]} 4. Nf3 {[%clk 0:03:01]}  g5 {[%clk 0:02:59]} 5. g3 {[%clk 0:03:01]}  g4 {[%clk 0:02:59]} 6. Nh4 {[%clk 0:03:00]}  Ne7 {[%clk 0:03:00]} 7. d4 {[%clk 0:02:58]}  Ng6 {[%clk 0:02:59]} 8. Nxg6 {[%clk 0:02:57]}  hxg6 {[%clk 0:02:59]} 9. Qd3 {[%clk 0:02:55]}  Nc6 {[%clk 0:02:56]} 10. c3 {[%clk 0:02:56]}  Bf5 {[%clk 0:02:50]} 11. e4 {[%clk 0:02:50]}  Qe7 {[%clk 0:02:50]} 12. Bg2 {[%clk 0:02:38]}  O-O-O {[%clk 0:02:41]} 13. O-O {[%clk 0:02:11]}  Bd7 {[%clk 0:02:34]} 14. e5 {[%clk 0:01:57]}  Bf5 {[%clk 0:02:22]} 15. Rxf5 {[%clk 0:01:53]}  gxf5 {[%clk 0:02:23]} 16. Qxf5+ {[%clk 0:01:52]}  Kb8 {[%clk 0:02:22]} 17. exd6 {[%clk 0:01:46]}  Rxd6 {[%clk 0:02:16]} 18. Bg5 {[%clk 0:01:37]}  f6 {[%clk 0:02:00]} 19. Nd2 {[%clk 0:01:03]}  fxg5 {[%clk 0:01:54]} 20. Ne4 {[%clk 0:00:56]}  Rdh6 {[%clk 0:01:52]} 21. Qxg5 {[%clk 0:00:46]}  Qxg5 {[%clk 0:01:49]} 22. Nxg5 {[%clk 0:00:46]}  Rxh2 {[%clk 0:01:49]} 23. Nf7 {[%clk 0:00:33]}  R8h7 {[%clk 0:01:41]} 24. Re1 {[%clk 0:00:27]}  a6 {[%clk 0:01:28]} 25. Ng5 {[%clk 0:00:23]}  R7h5 {[%clk 0:01:24]} 26. Re8+ {[%clk 0:00:17]}  Ka7 {[%clk 0:01:23]} 27. Ne4 {[%clk 0:00:16]}  Rh8 {[%clk 0:01:21]} 28. Re6 {[%clk 0:00:15]}  R2h6 {[%clk 0:01:20]} 29. d5 {[%clk 0:00:15]}  Nd8 {[%clk 0:01:14]} 30. Re7 {[%clk 0:00:14]}  R6h7 {[%clk 0:01:14]} 31. Re5 {[%clk 0:00:10]}  Nf7 {[%clk 0:01:13]} 32. Re6 {[%clk 0:00:09]}  Rd8 {[%clk 0:00:49]} 33. c4 {[%clk 0:00:09]}  Nd6 {[%clk 0:00:47]} 34. Nxd6 {[%clk 0:00:09]}  Rxd6 {[%clk 0:00:48]} 35. Re4 {[%clk 0:00:09]}  Rg7 {[%clk 0:00:47]} 36. b3 {[%clk 0:00:09]}  b6 {[%clk 0:00:46]} 37. Bf1 {[%clk 0:00:08]}  a5 {[%clk 0:00:46]} 38. Be2 {[%clk 0:00:08]}  Rf6 {[%clk 0:00:43]} 39. Bxg4 {[%clk 0:00:07]}  Rfg6 {[%clk 0:00:43]} 40. Bf3 {[%clk 0:00:07]}  Rxg3+ {[%clk 0:00:43]} 41. Kf2 {[%clk 0:00:08]}  Rh3 {[%clk 0:00:43]} 42. d6 {[%clk 0:00:08]}  cxd6 {[%clk 0:00:41]} 43. Re8 {[%clk 0:00:08]}  b5 {[%clk 0:00:37]} 44. cxb5 {[%clk 0:00:06]}  Rf7 {[%clk 0:00:35]} 45. Re3 {[%clk 0:00:05]}  Kb6 {[%clk 0:00:34]} 46. Kg2 {[%clk 0:00:05]}  Rh6 {[%clk 0:00:33]} 47. a4 {[%clk 0:00:05]}  Rg6+ {[%clk 0:00:33]} 48. Kf2 {[%clk 0:00:05]}  Kc5 {[%clk 0:00:32]} 49. Ke2 {[%clk 0:00:05]}  Rh6 {[%clk 0:00:31]} 50. Bc6 {[%clk 0:00:05]}  Rh2+ {[%clk 0:00:30]} 51. Kd3 {[%clk 0:00:06]}  Rff2 {[%clk 0:00:28]} 52. Ke4 {[%clk 0:00:06]}  d5+ {[%clk 0:00:26]} 53. Bxd5 {[%clk 0:00:05]}  Rh4+ {[%clk 0:00:26]} 54. Kd3 {[%clk 0:00:04]}  Rd4+ {[%clk 0:00:25]} 55. Kc3 {[%clk 0:00:04]}  Rxd5 {[%clk 0:00:25]} 56. Re4 {[%clk 0:00:04]}  Rf3+ {[%clk 0:00:25]} 57. Kb2 {[%clk 0:00:03]}  Rg5 {[%clk 0:00:26]} 58. Ka3 {[%clk 0:00:03]}  Rgg3 {[%clk 0:00:25]} 59. b6 {[%clk 0:00:03]}  Rxb3+ {[%clk 0:00:25]} 60. Ka2 {[%clk 0:00:03]}  Rxb6 {[%clk 0:00:25]} 61. Ka1 {[%clk 0:00:03]}  Rg2 {[%clk 0:00:24]} 62. Re5+ {[%clk 0:00:03]}  Kb4 {[%clk 0:00:23]} 63. Re4+ {[%clk 0:00:03]}  Kc3 {[%clk 0:00:20]} 64. Rc4+ {[%clk 0:00:02]}  Kd3 {[%clk 0:00:20]} 65. Rd4+ {[%clk 0:00:03]}  Ke3 {[%clk 0:00:20]} 66. Re4+ {[%clk 0:00:03]}  Kf3 {[%clk 0:00:20]} 67. Rf4+ {[%clk 0:00:03]}  Kg3 {[%clk 0:00:21]} 68. Rg4+ {[%clk 0:00:03]}  Kh2 {[%clk 0:00:21]} 69. Rh4+ {[%clk 0:00:03]}  Kg1 {[%clk 0:00:21]} 70. Rh1+ {[%clk 0:00:03]}  Kf2 {[%clk 0:00:21]} 71. Rf1+ {[%clk 0:00:03]}  Ke3 {[%clk 0:00:21]} 72. Rf3+ {[%clk 0:00:02]}  Ke2 {[%clk 0:00:21]} 73. Re3+ {[%clk 0:00:02]}  Kf2 {[%clk 0:00:19]} 74. Rf3+ {[%clk 0:00:02]}  Kg1 {[%clk 0:00:17]} 75. Rf1+ {[%clk 0:00:02]}  Kh2 {[%clk 0:00:18]} 76. Rh1+ {[%clk 0:00:03]}  Kg3 {[%clk 0:00:18]} 77. Rh3+ {[%clk 0:00:03]}  Kf4 {[%clk 0:00:18]} 78. Rf3+ {[%clk 0:00:03]}  Ke4 {[%clk 0:00:16]} 79. Re3+ {[%clk 0:00:04]}  Kd5 {[%clk 0:00:15]} 80. Re5+ {[%clk 0:00:03]}  Kc6 {[%clk 0:00:15]} 81. Re6+ {[%clk 0:00:03]}  Kb7 {[%clk 0:00:13]} 82. Re7+ {[%clk 0:00:03]}  Kc6 {[%clk 0:00:13]} 83. Rc7+ {[%clk 0:00:03]}  Kd6 {[%clk 0:00:12]} 84. Rd7+ {[%clk 0:00:03]}  Ke6 {[%clk 0:00:11]} 85. Re7+ {[%clk 0:00:03]}  Kd6 {[%clk 0:00:08]} 86. Rd7+ {[%clk 0:00:03]}  Kc5 {[%clk 0:00:07]} 87. Rd5+ {[%clk 0:00:03]}  Kb4 {[%clk 0:00:07]} 88. Rd4+ {[%clk 0:00:03]}  Kb3 {[%clk 0:00:06]} 89. Rd3+ {[%clk 0:00:03]}  Kxa4 {[%clk 0:00:06]} 90. Ra3+ {[%clk 0:00:03]}  Kb5 {[%clk 0:00:06]} 91. Rb3+ {[%clk 0:00:03]}  Ka6 {[%clk 0:00:06]} 92. Rd3 {[%clk 0:00:02]}  Rg1+ {[%clk 0:00:06]} 93. Ka2 {[%clk 0:00:02]}  Rc6 {[%clk 0:00:07]} 94. Ka3 {[%clk 0:00:02]}  Rcc1 {[%clk 0:00:06]} 95. Kb2 {[%clk 0:00:02]}  Kb5 {[%clk 0:00:06]} 96. Rd5+ {[%clk 0:00:01]}  Kb4 {[%clk 0:00:07]} 97. Rd8 {[%clk 0:00:01]}  Rb1+ {[%clk 0:00:07]} 98. Kc2 {[%clk 0:00:01]}  Rbf1 {[%clk 0:00:07]} 0-1


[Site "https://www.chess.com"]

[Event "Titled Tuesday Blitz April 19 Early 2022"]
[White "Gu, Xiaobing"]
[Black "Golubeva, Oksana"]
[WhiteFideId "8602611"]
[BlackFideId "4170164"]
[WhiteElo "2174"]
[BlackElo "2162"]
[Result "0-1"]
[Round "11"]
[TimeControl "180+1"]
[Date "2022.04.19"]
[WhiteClock "0:00:28"]
[BlackClock "0:00:54"]

1. e4 {[%clk 0:03:00]}  e6 {[%clk 0:02:58]} 2. d4 {[%clk 0:03:00]}  d5 {[%clk 0:02:59]} 3. exd5 {[%clk 0:03:00]}  exd5 {[%clk 0:02:58]} 4. Nf3 {[%clk 0:03:00]}  Nc6 {[%clk 0:02:58]} 5. Bb5 {[%clk 0:02:59]}  Bg4 {[%clk 0:02:58]} 6. Qe2+ {[%clk 0:02:47]}  Be7 {[%clk 0:02:51]} 7. O-O {[%clk 0:02:46]}  Nf6 {[%clk 0:02:50]} 8. Re1 {[%clk 0:02:45]}  Bxf3 {[%clk 0:02:48]} 9. Qxf3 {[%clk 0:02:44]}  O-O {[%clk 0:02:47]} 10. c3 {[%clk 0:02:45]}  Ne4 {[%clk 0:02:40]} 11. Nd2 {[%clk 0:02:25]}  f5 {[%clk 0:02:38]} 12. Nf1 {[%clk 0:02:24]}  Bd6 {[%clk 0:02:33]} 13. Bf4 {[%clk 0:02:02]}  Ne7 {[%clk 0:02:32]} 14. Ba4 {[%clk 0:01:58]}  Ng6 {[%clk 0:02:26]} 15. Bxd6 {[%clk 0:01:57]}  Qxd6 {[%clk 0:02:26]} 16. Ne3 {[%clk 0:01:53]}  c6 {[%clk 0:02:04]} 17. Rad1 {[%clk 0:01:48]}  f4 {[%clk 0:02:02]} 18. Ng4 {[%clk 0:01:46]}  Ng5 {[%clk 0:01:44]} 19. Qd3 {[%clk 0:01:41]}  f3 {[%clk 0:01:44]} 20. g3 {[%clk 0:01:23]}  Nh3+ {[%clk 0:01:36]} 21. Kf1 {[%clk 0:01:22]}  Ng5 {[%clk 0:01:19]} 22. Ne5 {[%clk 0:01:21]}  Ne4 {[%clk 0:01:18]} 23. Rxe4 {[%clk 0:00:53]}  dxe4 {[%clk 0:01:10]} 24. Qxe4 {[%clk 0:00:47]}  Nxe5 {[%clk 0:01:09]} 25. Qxe5 {[%clk 0:00:47]}  Qh6 {[%clk 0:01:04]} 26. h4 {[%clk 0:00:43]}  Rae8 {[%clk 0:01:01]} 27. Bb3+ {[%clk 0:00:41]}  Kh8 {[%clk 0:01:00]} 28. Qc5 {[%clk 0:00:40]}  Qg6 {[%clk 0:00:56]} 29. d5 {[%clk 0:00:40]}  Qg4 {[%clk 0:00:55]} 30. Kg1 {[%clk 0:00:28]}  Qh3 {[%clk 0:00:54]} 0-1


[Site "https://www.chess.com"]

[Event "Titled Tuesday Blitz April 19 Early 2022"]
[White "Hoffmann, Asa"]
[Black "Popadic, Dragan"]
[WhiteFideId "2001470"]
[BlackFideId "913650"]
[WhiteElo "2117"]
[BlackElo "2203"]
[Result "1-0"]
[Round "11"]
[TimeControl "180+1"]
[Date "2022.04.19"]
[WhiteClock "0:00:13"]
[BlackClock "0:00:15"]

1. d4 {[%clk 0:02:55]}  Nf6 {[%clk 0:02:59]} 2. Bg5 {[%clk 0:02:54]}  e6 {[%clk 0:02:58]} 3. Nd2 {[%clk 0:02:53]}  d5 {[%clk 0:02:55]} 4. e3 {[%clk 0:02:53]}  Be7 {[%clk 0:02:55]} 5. Bd3 {[%clk 0:02:53]}  c5 {[%clk 0:02:54]} 6. c3 {[%clk 0:02:52]}  b6 {[%clk 0:02:54]} 7. f4 {[%clk 0:02:52]}  Ba6 {[%clk 0:02:52]} 8. Bxa6 {[%clk 0:02:52]}  Nxa6 {[%clk 0:02:52]} 9. Qa4+ {[%clk 0:02:51]}  Qd7 {[%clk 0:02:51]} 10. Qxa6 {[%clk 0:02:51]}  O-O {[%clk 0:02:51]} 11. Ngf3 {[%clk 0:02:50]}  cxd4 {[%clk 0:02:47]} 12. exd4 {[%clk 0:02:49]}  Ne4 {[%clk 0:02:43]} 13. Bxe7 {[%clk 0:02:47]}  Qxe7 {[%clk 0:02:43]} 14. Qe2 {[%clk 0:02:44]}  f5 {[%clk 0:02:42]} 15. O-O {[%clk 0:02:41]}  Rac8 {[%clk 0:02:40]} 16. Ne5 {[%clk 0:02:38]}  Kh8 {[%clk 0:02:34]} 17. Kh1 {[%clk 0:02:21]}  Kg8 {[%clk 0:02:28]} 18. Rf3 {[%clk 0:02:20]}  Rf6 {[%clk 0:02:26]} 19. Rh3 {[%clk 0:02:18]}  b5 {[%clk 0:02:21]} 20. Nxe4 {[%clk 0:02:17]}  fxe4 {[%clk 0:02:21]} 21. a3 {[%clk 0:02:13]}  a6 {[%clk 0:02:21]} 22. Qg4 {[%clk 0:02:06]}  a5 {[%clk 0:02:18]} 23. Rg3 {[%clk 0:02:04]}  Rcf8 {[%clk 0:02:14]} 24. h4 {[%clk 0:01:58]}  Rxf4 {[%clk 0:02:09]} 25. Qg5 {[%clk 0:01:55]}  Rxh4+ {[%clk 0:02:07]} 26. Kg1 {[%clk 0:01:55]}  Qxg5 {[%clk 0:02:06]} 27. Rxg5 {[%clk 0:01:54]}  Rhf4 {[%clk 0:02:04]} 28. Re1 {[%clk 0:01:27]}  Rf2 {[%clk 0:02:03]} 29. b3 {[%clk 0:01:25]}  Rb2 {[%clk 0:01:59]} 30. c4 {[%clk 0:01:25]}  Rxb3 {[%clk 0:01:58]} 31. cxd5 {[%clk 0:01:24]}  exd5 {[%clk 0:01:58]} 32. Nd7 {[%clk 0:01:20]}  Rxa3 {[%clk 0:01:53]} 33. Rxd5 {[%clk 0:01:19]}  Re8 {[%clk 0:01:49]} 34. Ne5 {[%clk 0:01:18]}  b4 {[%clk 0:01:47]} 35. Nc4 {[%clk 0:01:10]}  Ra2 {[%clk 0:01:46]} 36. Rxa5 {[%clk 0:01:06]}  b3 {[%clk 0:01:45]} 37. Rb5 {[%clk 0:01:01]}  Rc2 {[%clk 0:01:38]} 38. Ne3 {[%clk 0:00:54]}  Rc3 {[%clk 0:01:36]} 39. d5 {[%clk 0:00:53]}  h6 {[%clk 0:01:29]} 40. d6 {[%clk 0:00:49]}  Rd8 {[%clk 0:01:29]} 41. Rb6 {[%clk 0:00:44]}  Kh7 {[%clk 0:01:25]} 42. Kh2 {[%clk 0:00:44]}  Rd7 {[%clk 0:01:22]} 43. Ng4 {[%clk 0:00:40]}  b2 {[%clk 0:01:12]} 44. Rxb2 {[%clk 0:00:36]}  Rxd6 {[%clk 0:01:11]} 45. Rxe4 {[%clk 0:00:36]}  Rg6 {[%clk 0:01:10]} 46. Rbe2 {[%clk 0:00:30]}  Rc5 {[%clk 0:01:07]} 47. Ne5 {[%clk 0:00:28]}  Rg5 {[%clk 0:01:04]} 48. Nf3 {[%clk 0:00:27]}  Rg6 {[%clk 0:01:01]} 49. g3 {[%clk 0:00:26]}  Rc3 {[%clk 0:00:58]} 50. Kg2 {[%clk 0:00:25]}  Ra3 {[%clk 0:00:57]} 51. R4e3 {[%clk 0:00:26]}  Ra5 {[%clk 0:00:55]} 52. Nh4 {[%clk 0:00:26]}  Rgg5 {[%clk 0:00:53]} 53. Rf3 {[%clk 0:00:25]}  Ra4 {[%clk 0:00:52]} 54. Kh3 {[%clk 0:00:24]}  Rb4 {[%clk 0:00:48]} 55. Re7 {[%clk 0:00:23]}  Ra4 {[%clk 0:00:45]} 56. Rff7 {[%clk 0:00:21]}  Ra6 {[%clk 0:00:37]} 57. Nf5 {[%clk 0:00:20]}  Rag6 {[%clk 0:00:36]} 58. Rf8 {[%clk 0:00:14]}  Ra6 {[%clk 0:00:25]} 59. Ree8 {[%clk 0:00:14]}  Ra5 {[%clk 0:00:20]} 60. Nh4 {[%clk 0:00:14]}  g6 {[%clk 0:00:15]} 61. Rf7# {[%clk 0:00:13]} 1-0


[Site "https://www.chess.com"]

[Event "Titled Tuesday Blitz April 19 Early 2022"]
[White "Horcajuelo Rocamora, Martin"]
[Black "Dauner, Benedikt"]
[WhiteFideId "24573027"]
[BlackFideId "16225899"]
[WhiteElo "1822"]
[BlackElo "2230"]
[Result "0-1"]
[Round "11"]
[TimeControl "180+1"]
[Date "2022.04.19"]
[WhiteClock "0:01:35"]
[BlackClock "0:01:55"]

1. e4 {[%clk 0:03:00]}  a6 {[%clk 0:03:00]} 2. d4 {[%clk 0:02:54]}  e6 {[%clk 0:03:01]} 3. c4 {[%clk 0:02:54]}  d5 {[%clk 0:03:00]} 4. Nc3 {[%clk 0:02:47]}  dxe4 {[%clk 0:02:58]} 5. Nxe4 {[%clk 0:02:44]}  Nf6 {[%clk 0:02:59]} 6. Nxf6+ {[%clk 0:02:43]}  Qxf6 {[%clk 0:02:58]} 7. Nf3 {[%clk 0:02:35]}  Nc6 {[%clk 0:02:58]} 8. Be3 {[%clk 0:02:34]}  Bb4+ {[%clk 0:02:57]} 9. Bd2 {[%clk 0:02:30]}  Bxd2+ {[%clk 0:02:56]} 10. Qxd2 {[%clk 0:02:31]}  O-O {[%clk 0:02:56]} 11. Bd3 {[%clk 0:02:29]}  Rd8 {[%clk 0:02:53]} 12. O-O-O {[%clk 0:02:27]}  h6 {[%clk 0:02:29]} 13. Be4 {[%clk 0:02:23]}  Bd7 {[%clk 0:02:22]} 14. Rhe1 {[%clk 0:02:22]}  Be8 {[%clk 0:02:20]} 15. g3 {[%clk 0:02:16]}  Rd6 {[%clk 0:02:12]} 16. Bxc6 {[%clk 0:02:14]}  Bxc6 {[%clk 0:02:06]} 17. Ne5 {[%clk 0:02:08]}  Bf3 {[%clk 0:02:01]} 18. Nxf3 {[%clk 0:02:04]}  Qxf3 {[%clk 0:02:02]} 19. Re3 {[%clk 0:01:59]}  Qf6 {[%clk 0:02:01]} 20. f4 {[%clk 0:01:57]}  Rad8 {[%clk 0:02:01]} 21. Rd3 {[%clk 0:01:55]}  Qf5 {[%clk 0:01:57]} 22. Kc2 {[%clk 0:01:42]}  Rxd4 {[%clk 0:01:55]} 23. Kc3 {[%clk 0:01:35]} 0-1


[Site "https://www.chess.com"]